[Event "Titled Tuesday Blitz April 4 Early 2023"]
[White "Guz, Ari"]
[Black "Petrova, Irina"]
[WhiteFideId "2825759"]
[BlackFideId "14124122"]
[WhiteElo "2205"]
[BlackElo "2084"]
[Result "1-0"]
[Round "04"]
[TimeControl "180+2"]
[Date "2023.04.04"]
[WhiteClock "0:01:27"]
[BlackClock "0:00:03"]

1. e4 {[%clk 0:03:00]}  d6 {[%clk 0:02:51]} 2. d4 {[%clk 0:03:00]}  Nf6 {[%clk 0:02:50]} 3. Nc3 {[%clk 0:03:00]}  e5 {[%clk 0:02:50]} 4. Nf3 {[%clk 0:02:58]}  Nbd7 {[%clk 0:02:49]} 5. Bc4 {[%clk 0:02:57]}  Be7 {[%clk 0:02:48]} 6. O-O {[%clk 0:02:58]}  c6 {[%clk 0:02:45]} 7. a4 {[%clk 0:02:55]}  h6 {[%clk 0:02:45]} 8. Nh4 {[%clk 0:02:50]}  O-O {[%clk 0:01:57]} 9. Nf5 {[%clk 0:02:49]}  Nb6 {[%clk 0:01:45]} 10. Nxe7+ {[%clk 0:02:49]}  Qxe7 {[%clk 0:01:45]} 11. Bb3 {[%clk 0:02:50]}  exd4 {[%clk 0:01:40]} 12. Qxd4 {[%clk 0:02:50]}  Be6 {[%clk 0:01:40]} 13. Bf4 {[%clk 0:02:44]}  Rad8 {[%clk 0:01:39]} 14. a5 {[%clk 0:02:42]}  Nc8 {[%clk 0:01:36]} 15. Ba4 {[%clk 0:02:30]}  d5 {[%clk 0:01:33]} 16. e5 {[%clk 0:02:29]}  Nd7 {[%clk 0:01:32]} 17. Bg3 {[%clk 0:02:27]}  Qc5 {[%clk 0:01:28]} 18. Qd2 {[%clk 0:02:21]}  Ne7 {[%clk 0:01:21]} 19. Rfb1 {[%clk 0:02:10]}  Nf5 {[%clk 0:01:18]} 20. b4 {[%clk 0:02:08]}  Qe7 {[%clk 0:01:13]} 21. Bf4 {[%clk 0:02:09]}  g5 {[%clk 0:01:07]} 22. Bg3 {[%clk 0:02:04]}  Nxg3 {[%clk 0:01:06]} 23. hxg3 {[%clk 0:02:04]}  Nxe5 {[%clk 0:01:07]} 24. a6 {[%clk 0:02:03]}  b5 {[%clk 0:01:05]} 25. Bb3 {[%clk 0:02:03]}  Qf6 {[%clk 0:01:02]} 26. Qe3 {[%clk 0:01:56]}  Ng4 {[%clk 0:00:49]} 27. Qf3 {[%clk 0:01:55]}  Qxf3 {[%clk 0:00:41]} 28. gxf3 {[%clk 0:01:56]}  Ne5 {[%clk 0:00:41]} 29. Kg2 {[%clk 0:01:56]}  d4 {[%clk 0:00:37]} 30. Ne4 {[%clk 0:01:55]}  Bxb3 {[%clk 0:00:32]} 31. Rxb3 {[%clk 0:01:56]}  Kg7 {[%clk 0:00:30]} 32. Nc5 {[%clk 0:01:56]}  Rd5 {[%clk 0:00:22]} 33. Rd1 {[%clk 0:01:52]}  Rfd8 {[%clk 0:00:21]} 34. Nb7 {[%clk 0:01:40]}  Re8 {[%clk 0:00:20]} 35. Na5 {[%clk 0:01:41]}  Re6 {[%clk 0:00:18]} 36. f4 {[%clk 0:01:38]}  gxf4 {[%clk 0:00:17]} 37. gxf4 {[%clk 0:01:39]}  Nc4 {[%clk 0:00:16]} 38. Nb7 {[%clk 0:01:39]}  Re2 {[%clk 0:00:16]} 39. Kf3 {[%clk 0:01:36]}  Rxc2 {[%clk 0:00:16]} 40. Rbd3 {[%clk 0:01:36]}  Rb2 {[%clk 0:00:13]} 41. Rxd4 {[%clk 0:01:33]}  Rxd4 {[%clk 0:00:14]} 42. Rxd4 {[%clk 0:01:34]}  Rxb4 {[%clk 0:00:13]} 43. Nd8 {[%clk 0:01:33]}  Ra4 {[%clk 0:00:12]} 44. Rd7 {[%clk 0:01:31]}  Rxa6 {[%clk 0:00:12]} 45. Nxf7 {[%clk 0:01:30]}  Kf6 {[%clk 0:00:12]} 46. Nxh6 {[%clk 0:01:31]}  Ra3+ {[%clk 0:00:10]} 47. Kg4 {[%clk 0:01:31]}  b4 {[%clk 0:00:10]} 48. Rc7 {[%clk 0:01:28]}  b3 {[%clk 0:00:10]} 49. Rxc6+ {[%clk 0:01:28]}  Kg7 {[%clk 0:00:11]} 50. Nf5+ {[%clk 0:01:27]}  Kf8 {[%clk 0:00:10]} 51. Rxc4 {[%clk 0:01:27]}  b2 {[%clk 0:00:10]} 52. Rb4 {[%clk 0:01:27]}  Ra2 {[%clk 0:00:10]} 53. Rb7 {[%clk 0:01:27]}  a5 {[%clk 0:00:08]} 54. Kg5 {[%clk 0:01:27]}  Ke8 {[%clk 0:00:07]} 55. Nd6+ {[%clk 0:01:25]}  Kd8 {[%clk 0:00:06]} 56. Nc4 {[%clk 0:01:26]}  b1=Q {[%clk 0:00:04]} 57. Rxb1 {[%clk 0:01:25]}  Rxf2 {[%clk 0:00:05]} 58. Nxa5 {[%clk 0:01:25]}  Rg2+ {[%clk 0:00:05]} 59. Kf6 {[%clk 0:01:25]}  Ra2 {[%clk 0:00:04]} 60. Nc6+ {[%clk 0:01:24]}  Kc7 {[%clk 0:00:04]} 61. Nd4 {[%clk 0:01:25]}  Ra6+ {[%clk 0:00:04]} 62. Ne6+ {[%clk 0:01:25]}  Kd6 {[%clk 0:00:03]} 63. f5 {[%clk 0:01:26]}  Kd5 {[%clk 0:00:04]} 64. Rd1+ {[%clk 0:01:26]}  Ke4 {[%clk 0:00:04]} 65. Rd4+ {[%clk 0:01:27]}  Ke3 {[%clk 0:00:03]} 66. Rb4 {[%clk 0:01:27]} 1-0


[Site "https://www.chess.com"]

[Event "Titled Tuesday Blitz April 4 Early 2023"]
[White "Dobre, Claudiu-Cristian"]
[Black "Bowden, Karl"]
[WhiteFideId "1211854"]
[BlackFideId "400548"]
[WhiteElo "2207"]
[BlackElo "2434"]
[Result "0-1"]
[Round "04"]
[TimeControl "180+2"]
[Date "2023.04.04"]
[WhiteClock "0:00:05"]
[BlackClock "0:01:26"]

1. e4 {[%clk 0:02:58]}  e5 {[%clk 0:03:00]} 2. Nf3 {[%clk 0:02:56]}  d5 {[%clk 0:03:00]} 3. Nxe5 {[%clk 0:02:49]}  Bd6 {[%clk 0:02:58]} 4. d4 {[%clk 0:02:47]}  dxe4 {[%clk 0:02:58]} 5. Nc4 {[%clk 0:02:34]}  Ne7 {[%clk 0:02:57]} 6. Nc3 {[%clk 0:02:32]}  Bf5 {[%clk 0:02:56]} 7. Be3 {[%clk 0:02:21]}  O-O {[%clk 0:02:47]} 8. Qd2 {[%clk 0:02:19]}  Bb4 {[%clk 0:02:44]} 9. a3 {[%clk 0:02:19]}  Bxc3 {[%clk 0:02:43]} 10. Qxc3 {[%clk 0:02:19]}  Nd5 {[%clk 0:02:44]} 11. Qd2 {[%clk 0:02:19]}  Nxe3 {[%clk 0:02:42]} 12. Nxe3 {[%clk 0:02:19]}  Bg6 {[%clk 0:02:42]} 13. h4 {[%clk 0:02:11]}  h5 {[%clk 0:02:31]} 14. Bc4 {[%clk 0:02:06]}  Nc6 {[%clk 0:02:27]} 15. O-O-O {[%clk 0:02:05]}  Ne7 {[%clk 0:02:18]} 16. g4 {[%clk 0:02:04]}  hxg4 {[%clk 0:02:14]} 17. h5 {[%clk 0:02:04]}  Bf5 {[%clk 0:02:14]} 18. h6 {[%clk 0:01:41]}  g6 {[%clk 0:02:14]} 19. d5 {[%clk 0:00:40]}  Kh7 {[%clk 0:02:08]} 20. d6 {[%clk 0:00:36]}  cxd6 {[%clk 0:02:03]} 21. Qd4 {[%clk 0:00:25]}  f6 {[%clk 0:02:02]} 22. Rdg1 {[%clk 0:00:15]}  Qd7 {[%clk 0:01:56]} 23. Nd5 {[%clk 0:00:15]}  Nxd5 {[%clk 0:01:52]} 24. Bxd5 {[%clk 0:00:14]}  Qe7 {[%clk 0:01:47]} 25. Qe3 {[%clk 0:00:13]}  Qe5 {[%clk 0:01:45]} 26. c4 {[%clk 0:00:13]}  b5 {[%clk 0:01:43]} 27. Kb1 {[%clk 0:00:14]}  Rab8 {[%clk 0:01:42]} 28. Rd1 {[%clk 0:00:13]}  bxc4 {[%clk 0:01:42]} 29. Qd4 {[%clk 0:00:12]}  e3+ {[%clk 0:01:37]} 30. Ka2 {[%clk 0:00:13]}  Qxd4 {[%clk 0:01:36]} 31. Rxd4 {[%clk 0:00:13]}  exf2 {[%clk 0:01:37]} 32. Rxc4 {[%clk 0:00:09]}  Rbc8 {[%clk 0:01:33]} 33. Rhc1 {[%clk 0:00:08]}  g3 {[%clk 0:01:27]} 34. Rxc8 {[%clk 0:00:05]}  Rxc8 {[%clk 0:01:26]} 35. Rxc8 {[%clk 0:00:05]}  Bxc8 {[%clk 0:01:26]} 36. Bg2 {[%clk 0:00:04]}  Ba6 {[%clk 0:01:25]} 37. Kb3 {[%clk 0:00:04]}  f1=Q {[%clk 0:01:25]} 38. Bxf1 {[%clk 0:00:05]}  Bxf1 {[%clk 0:01:26]} 0-1


[Site "https://www.chess.com"]

[Event "Titled Tuesday Blitz April 4 Early 2023"]
[White "Manon-og, Ramon Jr."]
[Black "Demin, Vladimir"]
[WhiteFideId "5200776"]
[BlackFideId "4167457"]
[WhiteElo "2379"]
[BlackElo "2548"]
[Result "0-1"]
[Round "04"]
[TimeControl "180+2"]
[Date "2023.04.04"]
[WhiteClock "0:01:11"]
[BlackClock "0:00:44"]

1. e4 {[%clk 0:03:00]}  e5 {[%clk 0:02:57]} 2. Nf3 {[%clk 0:03:01]}  Nc6 {[%clk 0:02:57]} 3. Bc4 {[%clk 0:03:01]}  Bc5 {[%clk 0:02:56]} 4. c3 {[%clk 0:03:01]}  Nf6 {[%clk 0:02:55]} 5. d4 {[%clk 0:03:01]}  exd4 {[%clk 0:02:55]} 6. e5 {[%clk 0:03:02]}  d5 {[%clk 0:02:55]} 7. Bb5 {[%clk 0:03:02]}  Ne4 {[%clk 0:02:53]} 8. cxd4 {[%clk 0:03:02]}  Bb6 {[%clk 0:02:51]} 9. Nc3 {[%clk 0:03:02]}  O-O {[%clk 0:02:50]} 10. Be3 {[%clk 0:03:02]}  Bg4 {[%clk 0:02:37]} 11. h3 {[%clk 0:03:02]}  Bxf3 {[%clk 0:02:34]} 12. gxf3 {[%clk 0:03:01]}  Ng5 {[%clk 0:02:31]} 13. h4 {[%clk 0:02:53]}  Ne6 {[%clk 0:02:30]} 14. Ne2 {[%clk 0:02:33]}  Ne7 {[%clk 0:02:23]} 15. Bd3 {[%clk 0:02:27]}  c5 {[%clk 0:02:22]} 16. f4 {[%clk 0:02:21]}  cxd4 {[%clk 0:02:17]} 17. Bd2 {[%clk 0:02:21]}  Nc5 {[%clk 0:02:14]} 18. Qc2 {[%clk 0:02:19]}  Nxd3+ {[%clk 0:02:10]} 19. Qxd3 {[%clk 0:02:19]}  Nc6 {[%clk 0:02:06]} 20. Rg1 {[%clk 0:02:12]}  Qe7 {[%clk 0:02:03]} 21. h5 {[%clk 0:02:00]}  h6 {[%clk 0:01:56]} 22. Qg3 {[%clk 0:01:50]}  f6 {[%clk 0:01:52]} 23. Qg6 {[%clk 0:01:47]}  fxe5 {[%clk 0:01:45]} 24. Qxh6 {[%clk 0:01:19]}  d3 {[%clk 0:01:34]} 25. Nc3 {[%clk 0:01:17]}  exf4+ {[%clk 0:01:03]} 26. Kf1 {[%clk 0:01:17]}  Rf7 {[%clk 0:00:45]} 27. Re1 {[%clk 0:01:11]}  Qh4 {[%clk 0:00:44]} 0-1


[Site "https://www.chess.com"]

[Event "Titled Tuesday Blitz April 4 Early 2023"]
[White "Deuer, Marius"]
[Black "Pichot, Alan"]
[WhiteFideId "16236432"]
[BlackFideId "110973"]
[WhiteElo "2163"]
[BlackElo "2573"]
[Result "0-1"]
[Round "04"]
[TimeControl "180+2"]
[Date "2023.04.04"]
[WhiteClock "0:00:59"]
[BlackClock "0:02:34"]

1. b3 {[%clk 0:02:54]}  e5 {[%clk 0:02:58]} 2. Bb2 {[%clk 0:02:55]}  Nc6 {[%clk 0:02:58]} 3. e3 {[%clk 0:02:54]}  Nf6 {[%clk 0:02:58]} 4. Bb5 {[%clk 0:02:53]}  Bd6 {[%clk 0:02:58]} 5. d4 {[%clk 0:02:52]}  exd4 {[%clk 0:02:57]} 6. exd4 {[%clk 0:02:51]}  O-O {[%clk 0:02:57]} 7. Ne2 {[%clk 0:02:51]}  Re8 {[%clk 0:02:57]} 8. h3 {[%clk 0:02:52]}  a6 {[%clk 0:02:55]} 9. Bxc6 {[%clk 0:02:50]}  dxc6 {[%clk 0:02:55]} 10. Nc3 {[%clk 0:02:49]}  Bf5 {[%clk 0:02:54]} 11. Qd2 {[%clk 0:02:23]}  Ne4 {[%clk 0:02:46]} 12. Nxe4 {[%clk 0:02:22]}  Bxe4 {[%clk 0:02:47]} 13. f3 {[%clk 0:02:21]}  Qh4+ {[%clk 0:02:45]} 14. Kf1 {[%clk 0:02:17]}  Bg6 {[%clk 0:02:42]} 15. c4 {[%clk 0:02:09]}  Re6 {[%clk 0:02:39]} 16. Re1 {[%clk 0:01:13]}  Rae8 {[%clk 0:02:36]} 17. Bc1 {[%clk 0:01:13]}  Bg3 {[%clk 0:02:35]} 18. Rd1 {[%clk 0:01:00]}  Rxe2 {[%clk 0:02:33]} 19. Qxe2 {[%clk 0:01:01]}  Rxe2 {[%clk 0:02:33]} 20. Kxe2 {[%clk 0:00:59]}  Qe7+ {[%clk 0:02:34]} 0-1


[Site "https://www.chess.com"]

[Event "Titled Tuesday Blitz April 4 Early 2023"]
[White "Leve, Nitai"]
[Black "Iskusnyh, Sergei"]
[WhiteFideId "2006898"]
[BlackFideId "4120027"]
[WhiteElo "2144"]
[BlackElo "2492"]
[Result "0-1"]
[Round "04"]
[TimeControl "180+2"]
[Date "2023.04.04"]
[WhiteClock "0:00:05"]
[BlackClock "0:00:11"]

1. e4 {[%clk 0:03:00]}  e6 {[%clk 0:02:59]} 2. d4 {[%clk 0:02:59]}  d5 {[%clk 0:02:59]} 3. Nd2 {[%clk 0:02:59]}  c5 {[%clk 0:02:59]} 4. exd5 {[%clk 0:02:58]}  exd5 {[%clk 0:02:58]} 5. Ngf3 {[%clk 0:02:58]}  Nc6 {[%clk 0:02:58]} 6. dxc5 {[%clk 0:02:51]}  Bxc5 {[%clk 0:02:57]} 7. Bd3 {[%clk 0:02:51]}  Nf6 {[%clk 0:02:56]} 8. h3 {[%clk 0:02:50]}  O-O {[%clk 0:02:53]} 9. O-O {[%clk 0:02:51]}  Bb6 {[%clk 0:02:54]} 10. a3 {[%clk 0:02:46]}  Qd6 {[%clk 0:02:51]} 11. b3 {[%clk 0:02:31]}  Bxh3 {[%clk 0:02:23]} 12. gxh3 {[%clk 0:02:15]}  Qg3+ {[%clk 0:02:23]} 13. Kh1 {[%clk 0:02:15]}  Qxh3+ {[%clk 0:02:15]} 14. Nh2 {[%clk 0:02:15]}  Ne5 {[%clk 0:02:12]} 15. Nf3 {[%clk 0:01:57]}  Nfg4 {[%clk 0:01:08]} 16. Bf4 {[%clk 0:01:54]}  Nxd3 {[%clk 0:01:07]} 17. Qxd3 {[%clk 0:01:47]}  Nxf2+ {[%clk 0:01:05]} 18. Rxf2 {[%clk 0:01:47]}  Bxf2 {[%clk 0:01:06]} 19. Qxd5 {[%clk 0:01:42]}  Rae8 {[%clk 0:01:00]} 20. Rf1 {[%clk 0:01:18]}  Re2 {[%clk 0:00:56]} 21. Qc4 {[%clk 0:01:17]}  Rfe8 {[%clk 0:00:30]} 22. Ne5 {[%clk 0:00:56]}  Qh5 {[%clk 0:00:19]} 23. Qb5 {[%clk 0:00:16]}  R2xe5 {[%clk 0:00:16]} 24. Bxe5 {[%clk 0:00:15]}  Rxe5 {[%clk 0:00:16]} 25. Qxb7 {[%clk 0:00:13]}  Bc5 {[%clk 0:00:16]} 26. Qb8+ {[%clk 0:00:12]}  Bf8 {[%clk 0:00:16]} 27. Qxa7 {[%clk 0:00:11]}  Re2 {[%clk 0:00:15]} 28. Rf2 {[%clk 0:00:09]}  Qd5+ {[%clk 0:00:14]} 29. Kg1 {[%clk 0:00:08]}  Rxf2 {[%clk 0:00:11]} 30. Kxf2 {[%clk 0:00:05]}  Bc5+ {[%clk 0:00:11]} 0-1


[Site "https://www.chess.com"]

[Event "Titled Tuesday Blitz April 4 Early 2023"]
[White "Vlassov, Nikolai"]
[Black "Kopczynski, Michal"]
[WhiteFideId "4103360"]
[BlackFideId "1124200"]
[WhiteElo "2324"]
[BlackElo "2212"]
[Result "1-0"]
[Round "04"]
[TimeControl "180+2"]
[Date "2023.04.04"]
[WhiteClock "0:00:12"]
[BlackClock "0:00:16"]

1. e4 {[%clk 0:01:57]}  c5 {[%clk 0:02:59]} 2. c3 {[%clk 0:01:57]}  d5 {[%clk 0:02:58]} 3. exd5 {[%clk 0:01:57]}  Qxd5 {[%clk 0:02:59]} 4. d4 {[%clk 0:01:58]}  cxd4 {[%clk 0:03:00]} 5. cxd4 {[%clk 0:01:58]}  Nc6 {[%clk 0:03:00]} 6. Nf3 {[%clk 0:01:58]}  Bg4 {[%clk 0:03:01]} 7. Nc3 {[%clk 0:01:58]}  Bxf3 {[%clk 0:02:53]} 8. gxf3 {[%clk 0:01:58]}  Qxd4 {[%clk 0:02:52]} 9. Qxd4 {[%clk 0:01:58]}  Nxd4 {[%clk 0:02:53]} 10. Nb5 {[%clk 0:01:59]}  Ne6 {[%clk 0:02:49]} 11. Bc4 {[%clk 0:01:58]}  a6 {[%clk 0:02:43]} 12. Bxe6 {[%clk 0:01:57]}  axb5 {[%clk 0:02:43]} 13. Bd5 {[%clk 0:01:57]}  e6 {[%clk 0:02:40]} 14. Bxb7 {[%clk 0:01:57]}  Bb4+ {[%clk 0:02:40]} 15. Ke2 {[%clk 0:01:57]}  Rb8 {[%clk 0:02:39]} 16. Bc6+ {[%clk 0:01:57]}  Ke7 {[%clk 0:02:40]} 17. Rg1 {[%clk 0:01:57]}  g6 {[%clk 0:02:39]} 18. Rg5 {[%clk 0:01:56]}  f5 {[%clk 0:02:36]} 19. Bf4 {[%clk 0:01:43]}  Rb6 {[%clk 0:02:32]} 20. Rc1 {[%clk 0:01:29]}  Nf6 {[%clk 0:02:32]} 21. Bc7 {[%clk 0:01:13]}  Ra6 {[%clk 0:02:20]} 22. a3 {[%clk 0:01:13]}  Bd6 {[%clk 0:02:04]} 23. Bxb5 {[%clk 0:01:12]}  Ra7 {[%clk 0:02:01]} 24. Bxd6+ {[%clk 0:01:08]}  Kxd6 {[%clk 0:02:02]} 25. Rgg1 {[%clk 0:01:08]}  Rb8 {[%clk 0:01:58]} 26. a4 {[%clk 0:00:59]}  Nd5 {[%clk 0:01:55]} 27. Rc6+ {[%clk 0:00:51]}  Ke5 {[%clk 0:01:53]} 28. Rgc1 {[%clk 0:00:48]}  Rd8 {[%clk 0:01:47]} 29. Rc8 {[%clk 0:00:43]}  Rd6 {[%clk 0:01:41]} 30. R1c6 {[%clk 0:00:41]}  Nf4+ {[%clk 0:01:36]} 31. Ke1 {[%clk 0:00:39]}  Rd5 {[%clk 0:01:25]} 32. Rc5 {[%clk 0:00:35]}  Rxc5 {[%clk 0:01:14]} 33. Rxc5+ {[%clk 0:00:35]}  Kd4 {[%clk 0:01:14]} 34. Rc4+ {[%clk 0:00:32]}  Ke5 {[%clk 0:01:14]} 35. Kd2 {[%clk 0:00:31]}  Ra8 {[%clk 0:01:13]} 36. b4 {[%clk 0:00:20]}  Rd8+ {[%clk 0:01:11]} 37. Kc2 {[%clk 0:00:21]}  Nd5 {[%clk 0:01:08]} 38. Bc6 {[%clk 0:00:19]}  Nb6 {[%clk 0:00:58]} 39. Rc5+ {[%clk 0:00:18]}  Kd4 {[%clk 0:00:55]} 40. a5 {[%clk 0:00:19]}  Nc8 {[%clk 0:00:51]} 41. a6 {[%clk 0:00:16]}  Nb6 {[%clk 0:00:47]} 42. a7 {[%clk 0:00:15]}  Rc8 {[%clk 0:00:37]} 43. Kb3 {[%clk 0:00:14]}  e5 {[%clk 0:00:33]} 44. Rb5 {[%clk 0:00:12]}  Na8 {[%clk 0:00:20]} 45. Rb8 {[%clk 0:00:12]}  Rxc6 {[%clk 0:00:17]} 46. Rxa8 {[%clk 0:00:12]}  Ra6 {[%clk 0:00:16]} 47. Rd8+ {[%clk 0:00:12]} 1-0


[Site "https://www.chess.com"]

[Event "Titled Tuesday Blitz April 4 Early 2023"]
[White "Kozin, Yuri"]
[Black "Mohammed, Zozek Salah Mohammed"]
[WhiteFideId "4129920"]
[BlackFideId "4803361"]
[WhiteElo "2588"]
[BlackElo "2211"]
[Result "0-1"]
[Round "04"]
[TimeControl "180+2"]
[Date "2023.04.04"]
[WhiteClock "0:00:01"]
[BlackClock "0:00:13"]

1. e4 {[%clk 0:03:00]}  e6 {[%clk 0:02:58]} 2. d4 {[%clk 0:03:00]}  d5 {[%clk 0:02:58]} 3. Nd2 {[%clk 0:03:01]}  c5 {[%clk 0:02:57]} 4. Ngf3 {[%clk 0:02:59]}  cxd4 {[%clk 0:02:48]} 5. Nxd4 {[%clk 0:03:00]}  Nc6 {[%clk 0:02:44]} 6. Bb5 {[%clk 0:03:01]}  Bd7 {[%clk 0:02:43]} 7. Nxc6 {[%clk 0:03:01]}  bxc6 {[%clk 0:02:41]} 8. Bd3 {[%clk 0:03:01]}  Bd6 {[%clk 0:02:40]} 9. Qe2 {[%clk 0:03:01]}  Ne7 {[%clk 0:02:31]} 10. e5 {[%clk 0:03:01]}  Bc7 {[%clk 0:02:30]} 11. O-O {[%clk 0:02:52]}  Ng6 {[%clk 0:02:29]} 12. Nf3 {[%clk 0:02:37]}  Qb8 {[%clk 0:02:28]} 13. Re1 {[%clk 0:02:34]}  c5 {[%clk 0:02:28]} 14. c4 {[%clk 0:02:33]}  O-O {[%clk 0:02:15]} 15. h4 {[%clk 0:02:25]}  Qd8 {[%clk 0:01:52]} 16. Bg5 {[%clk 0:02:19]}  f6 {[%clk 0:01:43]} 17. exf6 {[%clk 0:01:54]}  gxf6 {[%clk 0:01:44]} 18. Bh6 {[%clk 0:01:41]}  Nf4 {[%clk 0:01:26]} 19. Qd2 {[%clk 0:01:14]}  Nxd3 {[%clk 0:01:24]} 20. Qxd3 {[%clk 0:01:13]}  d4 {[%clk 0:01:15]} 21. Bxf8 {[%clk 0:00:45]}  Qxf8 {[%clk 0:01:15]} 22. b4 {[%clk 0:00:42]}  e5 {[%clk 0:01:14]} 23. bxc5 {[%clk 0:00:40]}  Qxc5 {[%clk 0:01:15]} 24. Qe4 {[%clk 0:00:35]}  Rf8 {[%clk 0:01:11]} 25. Rac1 {[%clk 0:00:29]}  Bc6 {[%clk 0:01:11]} 26. Qf5 {[%clk 0:00:22]}  Qd6 {[%clk 0:01:11]} 27. c5 {[%clk 0:00:21]}  Qd5 {[%clk 0:01:08]} 28. h5 {[%clk 0:00:17]}  Bd7 {[%clk 0:01:07]} 29. Qd3 {[%clk 0:00:12]}  f5 {[%clk 0:01:00]} 30. c6 {[%clk 0:00:11]}  Bxc6 {[%clk 0:00:51]} 31. Rxc6 {[%clk 0:00:09]}  Qxc6 {[%clk 0:00:50]} 32. Nxe5 {[%clk 0:00:09]}  Bxe5 {[%clk 0:00:48]} 33. Rxe5 {[%clk 0:00:10]}  Qc1+ {[%clk 0:00:45]} 34. Kh2 {[%clk 0:00:09]}  Qf4+ {[%clk 0:00:45]} 35. Qg3+ {[%clk 0:00:10]}  Qxg3+ {[%clk 0:00:46]} 36. Kxg3 {[%clk 0:00:11]}  Rd8 {[%clk 0:00:45]} 37. Re2 {[%clk 0:00:10]}  Kf7 {[%clk 0:00:45]} 38. Kf4 {[%clk 0:00:10]}  Kf6 {[%clk 0:00:45]} 39. Rd2 {[%clk 0:00:10]}  Rd5 {[%clk 0:00:45]} 40. f3 {[%clk 0:00:11]}  h6 {[%clk 0:00:43]} 41. g4 {[%clk 0:00:09]}  fxg4 {[%clk 0:00:43]} 42. fxg4 {[%clk 0:00:10]}  d3 {[%clk 0:00:36]} 43. Ke4 {[%clk 0:00:09]}  Rg5 {[%clk 0:00:32]} 44. Kf4 {[%clk 0:00:09]}  Rd5 {[%clk 0:00:31]} 45. Ke4 {[%clk 0:00:06]}  Rg5 {[%clk 0:00:28]} 46. Rf2+ {[%clk 0:00:03]}  Ke6 {[%clk 0:00:24]} 47. Kf4 {[%clk 0:00:03]}  Rd5 {[%clk 0:00:20]} 48. Rd2 {[%clk 0:00:04]}  Rd4+ {[%clk 0:00:18]} 49. Kf3 {[%clk 0:00:04]}  Ke5 {[%clk 0:00:18]} 50. Ke3 {[%clk 0:00:04]}  Rxg4 {[%clk 0:00:18]} 51. Rf2 {[%clk 0:00:02]}  Rg3+ {[%clk 0:00:17]} 52. Kd2 {[%clk 0:00:02]}  Ke4 {[%clk 0:00:17]} 53. Rf6 {[%clk 0:00:03]}  Rg2+ {[%clk 0:00:17]} 54. Kc3 {[%clk 0:00:02]}  Rc2+ {[%clk 0:00:15]} 55. Kb3 {[%clk 0:00:02]}  Rc5 {[%clk 0:00:15]} 56. Rd6 {[%clk 0:00:01]}  Rxh5 {[%clk 0:00:13]} 0-1


[Site "https://www.chess.com"]

[Event "Titled Tuesday Blitz April 4 Early 2023"]
[White "Silva Lucena, Cristian"]
[Black "Fiorito, Francisco"]
[WhiteFideId "2232588"]
[BlackFideId "180165"]
[WhiteElo "2223"]
[BlackElo "2341"]
[Result "1-0"]
[Round "04"]
[TimeControl "180+2"]
[Date "2023.04.04"]
[WhiteClock "0:01:04"]
[BlackClock "0:01:32"]

1. d4 {[%clk 0:02:56]}  Nf6 {[%clk 0:02:59]} 2. c4 {[%clk 0:02:56]}  c6 {[%clk 0:02:57]} 3. Nf3 {[%clk 0:02:52]}  d5 {[%clk 0:02:57]} 4. Nc3 {[%clk 0:02:52]}  dxc4 {[%clk 0:02:55]} 5. a4 {[%clk 0:02:52]}  e6 {[%clk 0:02:55]} 6. e4 {[%clk 0:02:49]}  Bb4 {[%clk 0:02:49]} 7. e5 {[%clk 0:02:47]}  Nd5 {[%clk 0:02:48]} 8. Bd2 {[%clk 0:02:46]}  c5 {[%clk 0:02:41]} 9. Bxc4 {[%clk 0:02:39]}  cxd4 {[%clk 0:02:39]} 10. Nxd5 {[%clk 0:02:39]}  Bxd2+ {[%clk 0:02:39]} 11. Qxd2 {[%clk 0:02:38]}  exd5 {[%clk 0:02:40]} 12. Bb5+ {[%clk 0:02:38]}  Bd7 {[%clk 0:02:37]} 13. Nxd4 {[%clk 0:02:34]}  O-O {[%clk 0:02:36]} 14. O-O {[%clk 0:02:26]}  Nc6 {[%clk 0:02:35]} 15. Bxc6 {[%clk 0:02:24]}  bxc6 {[%clk 0:02:35]} 16. b4 {[%clk 0:02:23]}  Qe7 {[%clk 0:02:31]} 17. f4 {[%clk 0:02:18]}  Rfb8 {[%clk 0:02:25]} 18. Rab1 {[%clk 0:02:16]}  c5 {[%clk 0:02:20]} 19. bxc5 {[%clk 0:02:14]}  Qxc5 {[%clk 0:02:20]} 20. Rbc1 {[%clk 0:02:08]}  Qb4 {[%clk 0:02:15]} 21. Qe3 {[%clk 0:02:00]}  Qxa4 {[%clk 0:02:05]} 22. f5 {[%clk 0:01:57]}  Rb4 {[%clk 0:02:05]} 23. Rcd1 {[%clk 0:01:55]}  Re8 {[%clk 0:02:01]} 24. f6 {[%clk 0:01:50]}  Kh8 {[%clk 0:01:36]} 25. fxg7+ {[%clk 0:01:17]}  Kg8 {[%clk 0:01:34]} 26. Qf4 {[%clk 0:01:13]}  Re7 {[%clk 0:01:32]} 27. Qf6 {[%clk 0:01:09]}  Rxd4 {[%clk 0:01:31]} 28. Qxe7 {[%clk 0:01:05]}  Kxg7 {[%clk 0:01:31]} 29. Qf6+ {[%clk 0:01:04]}  Kg8 {[%clk 0:01:31]} 30. Qxf7+ {[%clk 0:01:04]}  Kh8 {[%clk 0:01:32]} 31. Qf8# {[%clk 0:01:04]} 1-0


[Site "https://www.chess.com"]